Cogmind - Beta 15 @@@ ROGUE MODE // 2025.05.12 @ 14:02:01 Player: Lunace Result: Destroyed by FW-K8E(R) with Subdweller Machine Gun Performance ------------- Evolutions (0) 0 Regions Visited (3) 600 Robots Destroyed (25) 125 Value Destroyed (647) 647 Prototype IDs (0) 0 Alien Tech Used (0) 0 Bonus (0) 0 TOTAL SCORE: 1372 Bonus ------- None Cogmind --------- Core Integrity 0/250 Matter 89/300 Energy 250/250 System Corruption 0% Temperature Cool (0) Movement Rolling (110) Location -10/Subcaves Parts ------- > --- POWER (1) -------- Ion Engine > --- PROPULSION (2) --- Subdweller Monowheel > --- UTILITY (2) ------ Small Storage Unit Seismic Detector > --- WEAPON (2) ------- Subdweller Laser Subdweller Machine Gun > --- INVENTORY (8) ---- Subdweller Monowheel Flight Unit Flight Unit Flight Unit Flight Unit Enhanced Flamer Peak State ------------ > --- POWER ------------ Ion Engine > --- PROPULSION ------- Subdweller Monowheel Subdweller Monowheel > --- UTILITY ---------- Small Storage Unit Light Armor Plating > --- WEAPON ----------- Riot Gun Barrage Gun > --- INVENTORY -------- Ion Engine Subdweller Monowheel Flight Unit Flight Unit Flight Unit Flight Unit Seismic Detector Subdweller Shrapnel Launcher [Rating: 14] Favorites ----------- Power Ion Engine Engine Ion Engine Propulsion Light Treads Treads Light Treads Wheel Subdweller Monowheel Utility Small Storage Unit Device Seismic Detector Storage Small Storage Unit Protection Light Armor Plating Weapon Assault Rifle Energy Gun Subdweller Laser Ballistic Gun Assault Rifle Launcher Subdweller Shrapnel Launcher Special Weapon Enhanced Flamer Build | -11 -10 -10 -10 ------- Run | Yrd Mat Min Sub Slots Evolved . | . . . . Power . | . . . . Propulsion . | . . . . Utility . | . . . . Weapon . | . . . . Parts Attached 24 | 7 1 2 14 Power 3 | 1 . 1 1 Engine 3 | 1 . 1 1 Core . | . . . . Reactor . | . . . . Propulsion 6 | 2 . . 4 Treads 2 | 2 . . . Leg . | . . . . Wheel 4 | . . . 4 Hover . | . . . . Flight . | . . . . Utility 4 | 2 1 1 . Device 1 | 1 . . . Storage 2 | 1 1 . . Processor . | . . . . Hackware . | . . . . Protection 1 | . . 1 . Artifact . | . . . . Weapon 11 | 2 . . 9 Energy Gun 5 | . . . 5 Energy Cannon . | . . . . Ballistic Gun 4 | 2 . . 2 Ballistic Cannon . | . . . . Launcher 1 | . . . 1 Special Weapon 1 | . . . 1 Impact Weapon . | . . . . Slashing Weapon . | . . . . Piercing Weapon . | . . . . Special Melee Weapon . | . . . . Unidentified Prototypes . | . . . . Parts Lost 8 | . . 1 7 Power 1 | . . . 1 Propulsion 4 | . . 1 3 Utility 1 | . . . 1 Weapon 2 | . . . 2 Highest Loss Streak 5 | . . 1 5 To Critical Strikes 1 | . . . 1 Average Backups 6 | 1 5 7 7 Power 1 | . 2 1 . Propulsion 3 | . 1 4 4 Utility 1 | . 1 1 . Weapon . | . 1 1 1 Tool/Special . | . . . . Unused Backups 11 | . 1 4 6 Power 1 | . . 1 . Propulsion 7 | . . 2 5 Utility 1 | . . 1 . Weapon 2 | . 1 . 1 Tool/Special . | . . . . Average Slot Usage (%) 93 | . 100 88 92 Engine 14 | . 14 14 14 Treads 13 | . 28 17 3 Wheel 8 | . . . 18 Device 6 | . 14 7 2 Storage 14 | . 14 14 14 Protection 7 | . . 6 11 Energy Gun 2 | . . . 6 Ballistic Gun 20 | . 28 28 12 Launcher 2 | . . . 6 Special Weapon 1 | . . . 3 Peak Build Rating 14 | 7 7 7 14 Average Rating 8 | 5 7 6 10 On Entrance 5 | . 7 7 6 Naked Turns . | . . . . Heaviest Build 30 | 15 30 30 24 Greatest Support 40 | 40 40 40 40 Greatest Overweight (x) 5 | . . 1 5 Average Overweight (x) . | . . . . Largest Inventory Capacity 15 | 8 15 15 8 Average Capacity 10 | 7 14 9 8 Most Carried 11 | 2 9 11 8 Average Carried 6 | 1 5 7 7 Final Capacity 15 | 8 15 8 8 Final Carried 9 | 2 9 7 6 Class Distribution -------------------- 92% | Mutant 7% | Scavenger-Mutant Dominant Class ---------------- Mutant | -10/Materials Mutant | -10/Mines Mutant | -10/Subcaves Resources | -11 -10 -10 -10 ----------- Run | Yrd Mat Min Sub Matter Collected 831 | 236 290 79 226 Remotely . | . . . . Salvage Created 696 | 15 312 53 316 Parts 43 | 4 17 5 17 Haulers Intercepted 2 | . 2 . . Recyclers Shooed 1 | 1 . . . Parts Field Recycled . | . . . . Retrieved Matter . | . . . . Parts Self-Destructed . | . . . . Prevented . | . . . . Kills | -11 -10 -10 -10 ------- Run | Yrd Mat Min Sub Combat Hostiles Destroyed 20 | . 6 3 11 Guns 12 | . 6 3 3 AOE 8 | . . . 8 Classes Destroyed 7 | 1 5 . 1 Builder 1 | . 1 . . Tunneler 1 | 1 . . . Hauler 2 | . 2 . . Watcher 1 | . 1 . . Swarmer 6 | . 3 3 . Grunt 3 | . 3 . . Subdweller 11 | . . . 11 Best Kill Streak 6 | 1 4 3 6 Combat Bots Only 6 | . 3 3 6 Max Kills in Single Turn 2 | 1 1 1 2 Gunslinging . | . . . . Exploded 2 | . . . 2 Melee . | . . . . Uniques/NPCs Destroyed . | . . . . Combat | -11 -10 -10 -10 -------- Run | Yrd Mat Min Sub Hostile Shots Fired 112 | . 68 14 30 Missed 34 | . 23 4 7 Hits 78 | . 45 10 23 Projectile 78 | . 45 10 23 Critical Strikes 1 | . . . 1 Damage Taken 1229 | . 422 79 728 Core 255 | . 81 9 165 Absorbed by Shields . | . . . . Core Remaining (%) 100 | 100 . . . Volleys Fired 80 | 3 40 7 30 Largest 2 | 2 2 2 2 Hottest 110 | 40 40 40 110 Shots Fired 142 | 6 80 14 42 Gun 129 | 6 80 14 29 Cannon . | . . . . Launcher 13 | . . . 13 Special . | . . . . Kinetic 129 | 6 80 14 29 Thermal 7 | . . . 7 Explosive . | . . . . Electromagnetic 6 | . . . 6 Robot Hit Streak 8 | 3 8 6 6 Robot Miss Streak 4 | 1 4 2 2 Penetration Max . | . . . . Secondary Targets 2 | . 2 . . Max Gunslinging Chain 1 | . 1 . . Shots Hit Robots 89 | 4 50 9 26 Core Hits 40 | 1 16 3 20 Critical Kills 1 | . 1 . . Critical Parts Destroyed . | . . . . Critical Strikes 1 | . 1 . . Destroy 1 | . 1 . . Melee Attacks . | . . . . Impact . | . . . . Slashing . | . . . . Piercing . | . . . . Sneak Attacks . | . . . . Combat Hostiles . | . . . . Follow-up Attacks . | . . . . Damage Inflicted 2043 | 55 649 126 1213 Guns 1055 | 55 649 126 225 Cannons . | . . . . Explosions 988 | . . . 988 Melee . | . . . . Ramming . | . . . . Kinetic 1896 | 55 649 126 1066 Thermal 99 | . . . 99 Explosive . | . . . . Electromagnetic 48 | . . . 48 Impact . | . . . . Slashing . | . . . . Piercing . | . . . . Highest Corruption . | . . . . Average Corruption . | . . . . Corruption Purged . | . . . . Corruption Blocked . | . . . . Overload Shots . | . . . . Overflow Damage 34 | . . . 34 Projectiles . | . . . . Explosions 34 | . . . 34 Melee . | . . . . Knockbacks . | . . . . Impact . | . . . . Kinetic . | . . . . Secondary . | . . . . Self-Inflicted Damage 240 | . . . 240 Shots 7 | . . . 7 Rammed . | . . . . Targets Rammed . | . . . . Kicked . | . . . . Crushed . | . . . . Highest Temperature 2 | . 2 . 2 Average Temperature 2 | . 2 . 2 Received Heat Transfer 204 | . 120 . 84 Siege Activations . | . . . . Martial Activations . | . . . . Shielding Activations . | . . . . Robots Disrupted . | . . . . Combat Hostiles . | . . . . Robots Corrupted . | . . . . Combat Hostiles . | . . . . Parts Fried . | . . . . Impact Corruptions . | . . . . Robots Melted . | . . . . Combat Hostiles . | . . . . Parts Melted . | . . . . Heat Transferred 125 | . . . 125 Parts Sabotaged . | . . . . Parts Stolen . | . . . . Parts Stripped . | . . . . Power Chain Reactions . | . . . . Alert | -11 -10 -10 -10 ------- Run | Yrd Mat Min Sub Maximum Alert Level . | . . . . Low Security (%) 100 | 100 100 100 . Level 1 . | . . . . Level 2 . | . . . . Level 3 . | . . . . Level 4 . | . . . . Level 5 . | . . . . High Security . | . . . . Max Security . | . . . . Peak Influence 81 | 5 81 60 . Initial 28 | . . 28 . Average 11 | 1 15 9 . Influence Increases 274 | 5 199 70 . Destroy 0b10 Robot/C 180 | . 120 60 . Destroy 0b10 Robot/NC 25 | 5 20 . . Destroy Leader 46 | . 36 10 . Successful Hack 8 | . 8 . . Lose Combat Pursuer 15 | . 15 . . Influence Decreases 274 | 5 126 143 . Entered New Map 45 | . . 45 . Time Decay 219 | 5 126 88 . Lost Part 10 | . . 10 . Squads Dispatched 2 | . 2 . . Investigation 2 | . 2 . . Extermination . | . . . . Reinforcement . | . . . . Assault . | . . . . Garrison . | . . . . Intercept . | . . . . Searches Triggered . | . . . . Construction Impeded . | . . . . Haulers Reinforced . | . . . . Active Scanning Responses . | . . . . Cargo Convoy Interrupts . | . . . . Stealth | -11 -10 -10 -10 --------- Run | Yrd Mat Min Sub Distress Signals . | . . . . Communications Jammed . | . . . . Distress Signals . | . . . . Times Spotted 23 | . 7 3 13 Peak Tracking Total 3 | . 3 3 3 Tactical Retreats 2 | . 1 . 1 Traps | -11 -10 -10 -10 ------- Run | Yrd Mat Min Sub Traps Triggered 2 | . 2 . . Indirectly . | . . . . Trap Hack Attempts . | . . . . Triggered . | . . . . Disarmed . | . . . . Reprogrammed . | . . . . Reused . | . . . . Traps Extracted . | . . . . Installed . | . . . . Triggered . | . . . . Machines | -11 -10 -10 -10 ---------- Run | Yrd Mat Min Sub Machines Disabled . | . . . . Max in Single Turn . | . . . . Machines Repaired . | . . . . Machines Dismantled . | . . . . Machines Sabotaged . | . . . . Overloaded Fab Kills . | . . . . Hacking | -11 -10 -10 -10 --------- Run | Yrd Mat Min Sub Machines Accessed 2 | . 2 . . Terminals 2 | . 2 . . Fabricators . | . . . . Repair Stations . | . . . . Recycling Units . | . . . . Scanalyzers . | . . . . Garrison Access . | . . . . Total Hacks 3 | . 3 . . Successful 2 | . 2 . . Failed 1 | . 1 . . Catastrophic . | . . . . Database Lockouts . | . . . . Manual 3 | . 3 . . Terminals 3 | . 3 . . Fabricators . | . . . . Repair Stations . | . . . . Recycling Units . | . . . . Scanalyzers . | . . . . Garrison Access . | . . . . Terminal Hacks 1 | . 1 . . Branch Access Points 1 | . 1 . . Fabricator Hacks . | . . . . Repair Station Hacks . | . . . . Recycling Unit Hacks . | . . . . Scanalyzer . | . . . . Garrison Access Hacks . | . . . . Unauthorized Hacks 1 | . 1 . . Terminals 1 | . 1 . . Operators 1 | . 1 . . Fabricators . | . . . . Repair Stations . | . . . . Recycling Units . | . . . . Scanalyzers . | . . . . Garrison Access . | . . . . Data Cores Recovered . | . . . . Used . | . . . . Hacking Detections 1 | . 1 . . Full Trace Events . | . . . . Feedback Events . | . . . . Feedback Blocked . | . . . . Robot Schematics Acquired . | . . . . Robots Built . | . . . . Authchips . | . . . . Time . | . . . . Total Robot Build Rating . | . . . . Part Schematics Acquired . | . . . . Parts Built . | . . . . Authchips . | . . . . Time . | . . . . Total Part Build Rating . | . . . . Parts Repaired . | . . . . Time . | . . . . Parts Recycled . | . . . . Recycled Matter . | . . . . Retrieved Matter . | . . . . Retrieved Components . | . . . . Parts Scanalyzed . | . . . . Part Schematics Acquired . | . . . . Parts Damaged . | . . . . Bothacking | -11 -10 -10 -10 ------------ Run | Yrd Mat Min Sub Used RIF Installer . | . . . . Robots Hacked . | . . . . Non-combat . | . . . . Combat . | . . . . Robot Hacks Applied . | . . . . Relay Couplers Released . | . . . . Fabnet Peak Effective % . | . . . . Robots Rewired . | . . . . Allies Hacked . | . . . . Hacks Repelled . | . . . . Allies | -11 -10 -10 -10 -------- Run | Yrd Mat Min Sub Total Allies . | . . . . Largest Group . | . . . . Highest-Rated Group . | . . . . Highest-Rated Ally . | . . . . Total Orders . | . . . . Ally Attacks . | . . . . Total Damage . | . . . . Kills . | . . . . Allies Corrupted . | . . . . Allies Melted . | . . . . Intel | -11 -10 -10 -10 ------- Run | Yrd Mat Min Sub Active Infowar (turns) 920 | 5 509 256 150 Seismic 920 | 5 509 256 150 Robot Analysis Total . | . . . . Derelict Logs Recovered 1 | . . 1 . Drone Launches . | . . . . Drone Recoveries . | . . . . Exploration | -11 -10 -10 -10 ------------- Run | Yrd Mat Min Sub Turns Passed 1987 | 90 509 500 888 Spaces Moved 1198 | 47 225 280 646 Core 6 | 5 . . 1 Treads 680 | 42 225 280 133 Legs . | . . . . Wheels 512 | . . . 512 Hover . | . . . . Flight . | . . . . Fastest Speed 50 | 50 160 160 110 Average Speed 138 | 148 160 161 120 Slowest Speed 300 | 160 160 240 300 Overloaded Moves . | . . . . Propulsion Burnouts . | . . . . Robots Hopped . | . . . . Potential Cave-ins . | . . . . Cave-ins Triggered . | . . . . Exploration Rate (%) 32 | 6 34 49 39 Regions Visited 3 Branch Regions 2 Pre-discovered Areas . | . . . . Known Exits Taken 1 | . 1 . . Unknown Exits Taken 2 | 1 . 1 . Scrap Searched 8 | . . 2 6 Spaces Dug . | . . . . Terrain Destroyed 98 | . . . 98 Melee . | . . . . Projectile . | . . . . AOE 98 | . . . 98 Terrain Rammed . | . . . . Walls Destroyed . | . . . . Machines Disabled . | . . . . Actions | -11 -10 -10 -10 --------- Run | Yrd Mat Min Sub Total 1381 | 58 294 317 712 Wait 47 | . 21 18 8 Move 1195 | 46 224 279 646 Hop . | . . . . Pick Up 15 | 2 7 3 3 Fast Attach 18 | 7 . 1 10 Attach 2 | . . . 2 Detach 1 | . . 1 . Swap 7 | . 1 2 4 Drop 16 | . 1 6 9 Fire 80 | 3 40 7 30 Melee . | . . . . Ram . | . . . . Kick . | . . . . Crush . | . . . . Escape Stasis . | . . . . Rewire . | . . . . Trap . | . . . . Miscellaneous . | . . . . Route ------- -11/Scrapyard -10/Materials (discovered 2 exits: *Min x2) -10/Mines -10/Subcaves (discovered 1 exit: [*Mat]) History --------- Turn | Location | Event 5 | -11/Scrapyard | Discovered new exit (range 15) 91 | -11/Scrapyard | Entered Materials 317 | -10/Materials | Build established: Mutant 567 | -10/Materials | Discovered new exit (range 8) 581 | -10/Materials | Identified exit to Mines 600 | -10/Materials | Entered Mines 613 | -10/Mines | Met a Derelict bent on vengeance 986 | -10/Mines | Learned Materials stockpile data 1090 | -10/Mines | Discovered new exit (range 6) 1100 | -10/Mines | Entered Subcaves 1346 | -10/Subcaves | Discovered new exit (range 10) 1385 | -10/Subcaves | Disturbed a concealed Subdweller 1464 | -10/Subcaves | Disturbed a concealed Subdweller 1465 | -10/Subcaves | Disturbed a concealed Subdweller 1719 | -10/Subcaves | A swath of the cavern ceiling suddenly collapsed 1814 | -10/Subcaves | Ambushed by Subdwellers from Twisted Machinery 1821 | -10/Subcaves | Ambushed by Subdweller buried in earth 1823 | -10/Subcaves | Ambushed by Subdweller buried in earth 1825 | -10/Subcaves | Ambushed by Subdweller buried in earth 1826 | -10/Subcaves | Core integrity fell below 50% 1833 | -10/Subcaves | Ambushed by Subdweller buried in earth 1834 | -10/Subcaves | Core integrity fell below 20% 1866 | -10/Subcaves | Lost 5 parts (1p1n1u2w) 1988 | -10/Subcaves | Destroyed by FW-K8E(R) with Subdweller Machine Gun Last Messages --------------- 01827_ 6S-HRT(R) destroyed. 01830_ Lgt. Armor Plating destroyed. 01833_ Barrage Gun destroyed. 01833_ NT-TGD(R) destroyed. 01833_ Ion Engine destroyed. 01833_ Destroyed Ion Engine. 01833_ 7V-UCO(R) destroyed. 01834_ 0N-OVT(R): "ARGHSUB!" 01835_ 0N-OVT(R) destroyed. 01835_ Sub. Shrapnel Launcher destroyed. 01835_ Destroyed Sub. Shrapnel Launcher. 01840_ Acquired Sub. Machine Gun. 01843_ Acquired 49 matter. 01848_ Acquired Sub. Laser. 01854_ The unstable cave ceiling collapses. 01954_ Acquired Sub. Monowheel. 01971_ Sub. Monowheel shoots sparks and powers down. 01980_ Broken Sub. Monowheel destroyed. 01982_ 5E-MWS(R) destroyed. Map ----- +----------------------------------------------------+ | ????????????????????????????????#???????????????# | | ???????????????????????????????? #??????????????# | | ??????????????????????????##???? ##???????????# | | ??????????????????????????? #???? ???????????# | | ???????????????????????????? #??? %???????????## | | ????????????????????????????? #?? ????????????## | | ?????????????????????????????? ### ?????????????? | | ??????????????????????????????? #?????????????? | | ????????????????????????#??????# ##????????????? | | ????????????????????????# ?????# ####?????????? | | ???????????????????##??## ????## ###???????? | | ??????????????????# ## ???# ##??????? | | ??????????????????? ??## #??????? | | ??????????????????? ?# #????????? | | ???????????????????? ?# ## ####????????# | | ???????????????????? #???# #???????????# | | ??????????????????### #??## #####???????# | | ??????????????????? ???## ##??????# | | ???????????????????? ????# ##?????# | | ?????????????????????# ????# #?????# | | ??????????????????????# ##?## ##### ##?????# | | ???????????????# "???# ### ##???## ##??????# | | ???????????????# "##### ##????## ##??????? | | ??????????" #### """"# #?????# ##?????? | | ??????????"" """R #?????# ##????? | | ???????????"" !%= @ ##?????# ###??? | | ?????????????# # #####??????## ##?? | | ?????????????### ??#### ########????## ### | | ??????????????????????## ##### #???## | | ???????????????????????###?## #???# | | ???????????????????????????# #??### | | ??????????????????????????## ##?# ## ## | | ?????????????????????????## ## ### #### ### | | ?????????????????????????# ### #??# #?# | | ????????????????????????## ### #?## #### | | ???????????????????????## ### #?# ##?# | | ?????????????????????### ##?## ### ## | | ?????????????????????# #???## ## ### | | ?????????????????????## ###????## ##?# | | ??????????????????????####???????## ##??# | | ??????????????????????????????????### #####???### | | ????????????????????????????????????####?????????? | | ?????????????????????????????????????????????????? | | ?????????????????????????????????????????????????? | | ?????????????????????????????????????????????????? | | ?????????????????????????????????????????????????? | | ?????????????????????????????????????????????????? | | ?????????????????????????????????????????????????? | | ?????????????????????????????????????????????????? | | ?????????????????????????????????????????????????? | +----------------------------------------------------+ Best States ------------- Heat Dissipation 25 Energy Generation 10 Energy Capacity 250 Matter Stores 300 Matter Capacity 300 Sight Range 16 Terrain Scan Density 10 Armor Coverage 150 Evasion (%) 40 Recoil Reduction 2 Item Schematics ----------------- None Robot Schematics ------------------ None Fabricated ------------ Nothing Repaired ---------- Nothing Alien Tech Used ----------------- None Achievements -------------- None Challenges ------------ None Game ------ Seed ElectronParticleReplica Manual? 0 Play Time 00:13:05 Cumulative 396.3 hours Start 2025.05.12 @ 13:48:14 End 2025.05.12 @ 14:02:01 Sessions 1 Manual Loads 0 Difficulty Rogue Special Mode None Game No. 397 Rogue 392 Adventurer 5 Explorer 0 Win Type - Total 9 Types 6/0/0/3/0/0/0/0/0/0 Lore% 79 Gallery% 77 Achievement% 71 Wizard Run 0 Options --------- Layout 1 ASCII 0 Keyboard 0 Movement Arrows Keybinds 0 Fullscreen 1 Font 24/Terminus Map View 50x35 Zoom Use 0% Tactical HUD 1 Map Filters NONE Filters NONE Steam 1 RUN: 7bb172e2-5744-4853-8970-06cd43ea5224